bitfinex-derivatives/quotes_ETHF0:USTF0_20251024
["timestamp","ask_amount","ask_price","bid_price","bid_amount"]
[1761335247160,9.1354,3927.3,3927.2,0.7889]
[1761335247866,9.2718,3927.3,3927.2,0.7889]
[1761335249257,9.4082,3927.3,3927.2,0.3369]
[1761335254065,0.4092,3927.3,3927.2,0.3369]
[1761335254364,8.215,3927.3,3927.2,0.452]
[1761335254974,8.215,3927.3,3927.2,0.7889]
[1761335255271,8.3514,3927.3,3927.2,0.7889]
[1761335256372,0.00297013,3927.4,3927.3,0.7889]
[1761335256562,9.00097013,3927.4,3927.3,0.7889]
[1761335257468,0.91449418,3928.1,3927.9,0.4414]
[1761335257670,1.05059418,3929.0,3928.5,0.59865]
[1761335257876,1.05059418,3929.2,3929.0,0.4599]
[1761335258068,5.931,3929.1,3929.0,0.9013]
[1761335258669,0.00208393,3929.1,3929.0,0.9013]
[1761335258871,9.00008393,3929.1,3929.0,0.9013]
[1761335259271,9.13618393,3929.1,3929.0,0.9013]
[1761335260065,0.00208393,3929.1,3929.0,0.9013]
[1761335260779,0.00208393,3929.1,3929.0,5.9013]
[1761335265280,0.2722,3930.4,3930.3,0.7608]
[1761335265475,6.0951,3931.0,3930.5,0.1405]
[1761335265678,0.1361,3930.7,3930.6,0.7608]
[1761335266481,0.00328452,3930.7,3930.6,0.76315288]
[1761335267967,0.13938452,3930.7,3930.6,0.76315288]
[1761335268571,0.41158452,3930.7,3930.6,0.00235288]
[1761335268772,0.2722,3929.9,3929.8,0.5392]
[1761335268973,9.1301,3930.2,3929.8,0.4414]
[1761335269180,9.1301,3930.2,3929.5,0.1405]
[1761335269181,0.13938452,3930.7,3930.6,0.7608]
[1761335269367,9.26948452,3930.7,3930.6,0.7608]
[1761335269575,9.40558452,3930.7,3930.6,0.5392]
[1761335269876,9.26948452,3930.7,3930.6,0.54192255]
[1761335270272,9.40558452,3930.7,3930.6,0.54192255]
[1761335270583,9.40558452,3930.7,3930.6,0.32212255]
[1761335270781,9.26948452,3930.7,3930.6,0.54192255]
[1761335272479,9.40558452,3930.7,3930.6,0.32212255]
[1761335273890,9.26948452,3930.7,3930.6,0.54192255]
[1761335274186,0.00328452,3930.7,3930.6,0.76352255]
[1761335275390,0.27548452,3930.7,3930.6,0.76352255]
[1761335278686,0.41118452,3930.7,3930.6,0.54192255]
[1761335279281,0.27548452,3930.7,3930.6,0.54192255]
[1761335279783,0.27548452,3930.7,3930.6,0.75892255]
[1761335280185,0.00328452,3930.7,3930.6,0.75892255]
[1761335280579,0.1357,3931.7,3930.7,0.3293]
[1761335280788,0.1357,3932.3,3931.7,0.3293]
[1761335281094,0.1357,3931.8,3931.7,0.7662]
[1761335281786,0.00205389,3931.8,3931.7,0.7662]
[1761335285800,0.1357,3932.6,3932.5,0.9063]
[1761335286299,0.2714,3932.6,3932.5,0.9063]
[1761335286496,1.408,3932.7,3932.1,0.3293]
[1761335286497,0.2714,3932.2,3932.1,0.3293]
[1761335286698,0.27435163,3932.2,3932.1,0.5492]
[1761335286993,0.41005163,3932.2,3932.1,0.5492]
[1761335287197,0.41005163,3932.2,3932.1,0.3293]
[1761335288389,0.27435163,3932.2,3931.8,0.3334]
[1761335288606,0.408,3931.6,3931.5,0.7014]
[1761335288900,3.741,3931.6,3931.5,0.3334]
[1761335289897,3.85818466,3931.6,3931.5,0.3334]
[1761335290797,3.85818466,3931.6,3931.5,0.4648]
[1761335291101,3.85818466,3931.6,3931.5,0.6927]
[1761335291291,3.72218466,3931.6,3931.5,0.6927]
[1761335291597,3.85818466,3931.6,3931.5,0.6927]
[1761335292994,0.11718466,3931.6,3931.5,0.9049]
[1761335293195,0.00295163,3932.2,3932.1,0.7735]
[1761335294695,0.13895163,3932.2,3932.1,0.7735]
[1761335300208,0.41095163,3932.2,3932.1,0.5613]
[1761335300399,0.27495163,3932.2,3932.1,0.5613]
[1761335300607,0.27495163,3932.2,3932.1,0.7735]
[1761335300995,0.41095163,3932.2,3932.1,0.7735]
[1761335301200,0.27495163,3932.2,3932.1,0.7735]
[1761335303002,0.13895163,3932.2,3932.1,0.7735]
[1761335306008,0.00295163,3932.2,3932.1,0.7735]
[1761335308015,0.13895163,3932.2,3932.1,0.7735]
[1761335308905,0.27495163,3932.2,3932.1,0.7735]
[1761335309108,1.18944581,3932.2,3932.1,0.7735]
[1761335309308,1.18944581,3932.2,3931.6,0.3334]
[1761335309309,9.26895163,3932.2,3931.6,0.3334]
[1761335309509,0.408,3931.7,3931.6,0.3334]
[1761335309700,0.272,3931.7,3931.5,0.4648]
[1761335309904,0.408,3931.2,3931.1,0.3334]
[1761335310107,9.405,3931.2,3931.1,0.3334]
[1761335310916,0.272,3930.8,3930.7,0.5613]
[1761335311102,1.18609181,3930.8,3930.7,0.5613]
[1761335311307,1.32209181,3930.8,3930.7,0.3334]
[1761335311813,1.18609181,3930.8,3930.7,0.5613]
[1761335312114,0.408,3930.8,3930.7,0.3334]
[1761335312310,1.18540356,3930.8,3930.7,0.5613]
[1761335312716,1.18540356,3930.8,3930.7,0.7735]
[1761335313515,1.04940356,3931.0,3930.9,0.7735]
[1761335314116,1.18540356,3931.0,3930.9,0.7735]
[1761335314620,0.272,3931.0,3930.9,0.7735]
[1761335315811,0.408,3931.0,3930.9,0.3334]
[1761335316119,1.77913772,3931.0,3930.9,0.3334]
[1761335317417,0.408,3931.0,3930.9,0.3334]
[1761335321421,0.272,3931.0,3930.9,0.547]
[1761335321721,0.272,3931.0,3930.9,0.7657]
[1761335324920,9.265,3931.0,3930.9,0.7657]
[1761335325515,9.401,3931.0,3930.9,0.3334]
[1761335326624,9.265,3931.0,3930.9,0.7657]
[1761335326825,9.264,3931.0,3930.9,0.7657]
[1761335328820,0.408,3930.8,3930.7,0.3435]
[1761335329222,0.272,3930.8,3930.7,0.5571]
[1761335330740,0.272,3930.8,3930.7,0.7758]
[1761335331439,0.136,3930.8,3930.7,0.7758]
[1761335334244,9.128,3931.0,3930.8,0.3435]
[1761335334439,9.128,3931.0,3930.9,0.7758]
[1761335335040,9.264,3931.0,3930.9,0.7758]
[1761335335735,10.17604622,3931.0,3930.9,0.7758]
[1761335337439,9.264,3931.0,3930.9,0.7758]
[1761335337945,10.1775578,3931.0,3930.9,0.7758]
[1761335338345,9.264,3931.0,3930.9,0.7758]
[1761335339640,9.3996,3931.0,3930.9,0.7758]
[1761335339940,9.3996,3931.0,3930.9,0.5571]
[1761335342448,9.264,3931.0,3930.9,0.7719]
[1761335342645,1.96400439,3931.4,3931.0,0.4831]
[1761335342854,1.96400439,3932.0,3931.9,0.7939]
[1761335343150,9.1256,3932.0,3931.9,0.7939]
[1761335343343,9.2612,3932.0,3931.9,0.7939]
[1761335344752,0.2712,3932.0,3931.9,0.7939]
[1761335344953,1.50751767,3932.0,3931.9,0.7939]
[1761335345252,0.00295163,3932.2,3932.1,0.7939]
[1761335345551,8.99295163,3932.2,3932.1,0.7939]
[1761335347255,0.00295163,3932.2,3932.1,0.7939]
[1761335347555,8.99195163,3932.2,3932.1,0.7939]
[1761335347956,8.99195163,3932.2,3931.8,0.45775]
[1761335347957,0.271,3931.9,3931.8,0.333]
[1761335348152,0.271,3931.9,3931.8,0.5521]
[1761335348346,0.91683654,3932.2,3932.0,0.576]
[1761335348550,1.05233654,3932.2,3932.1,0.7707]
[1761335348756,10.37413654,3932.2,3932.1,0.7707]
[1761335349150,9.59575163,3932.2,3932.1,0.7707]
[1761335349351,11.1031693,3932.2,3932.1,0.333]
[1761335350251,9.73125163,3932.2,3932.1,0.333]
[1761335350453,11.1031693,3932.2,3932.1,0.333]
[1761335350651,0.4065,3931.9,3931.8,0.333]
[1761335351048,0.271,3931.9,3931.8,0.7707]
[1761335351546,0.91219223,3932.1,3932.0,0.909]
[1761335351755,10.17619223,3932.1,3932.0,0.909]
[1761335352154,10.04069223,3932.1,3932.0,0.909]
[1761335352355,8.993,3932.1,3932.0,0.909]
[1761335352657,4.12294386,3932.2,3932.0,0.909]
[1761335352658,3.21075163,3932.2,3932.1,0.7707]
[1761335355955,3.21075163,3932.2,3932.1,6.22842]
[1761335356958,1.37191767,3933.4,3932.1,6.22842]
[1761335356959,0.91219223,3933.5,3932.6,1.14417]
[1761335357261,3.2078,3934.0,3933.9,0.7707]
[1761335357763,4.1089,3934.0,3933.9,0.4377]
[1761335357947,4.11071016,3934.0,3933.9,0.44093035]
[1761335358153,4.11071016,3934.0,3933.9,0.77393035]
[1761335358354,4.13528185,3934.0,3933.9,0.77393035]
[1761335358756,4.15985354,3934.0,3933.9,0.77393035]
[1761335359263,4.18442523,3934.0,3933.9,0.77393035]
[1761335359658,3.84669692,3934.0,3933.9,0.77393035]
[1761335360054,3.74841016,3934.0,3933.9,0.77393035]
[1761335360256,3.33246861,3934.0,3933.9,0.77393035]
[1761335360465,4.23356861,3934.0,3933.9,0.77393035]
[1761335360661,4.11071016,3934.0,3933.9,0.44093035]
[1761335360876,4.2581403,3934.0,3933.9,0.44093035]
[1761335361164,4.2581403,3934.0,3933.9,0.77393035]
[1761335361165,4.1287403,3934.0,3933.9,0.77393035]
[1761335361358,4.15331199,3934.0,3933.9,0.77393035]
[1761335361756,4.17788368,3934.0,3933.9,0.77393035]
[1761335362159,4.19095819,3934.0,3933.9,0.77393035]
[1761335362351,3.63245819,3934.0,3933.9,0.77393035]
[1761335362960,12.65045819,3934.0,3933.9,0.77393035]
[1761335363162,13.20895819,3934.0,3933.9,0.77393035]
[1761335363967,13.33835819,3934.0,3933.9,0.00323035]
[1761335365254,18.01275819,3934.0,3932.6,0.5521]
[1761335365461,0.5388,3932.7,3932.6,0.7707]
[1761335365656,9.2312,3932.9,3932.6,0.89536]
[1761335365968,9.2312,3932.9,3932.8,0.7707]
[1761335366359,9.44084803,3932.9,3932.8,0.77355813]
[1761335366760,9.76644803,3932.9,3932.8,0.77355813]
[1761335367257,9.22764803,3932.9,3932.8,1.23119813]
[1761335367462,9.99934803,3932.9,3932.8,0.77355813]
[1761335367657,0.98134803,3932.9,3932.8,0.77355813]
[1761335367854,9.99834803,3932.9,3932.8,0.77355813]
[1761335369564,9.43984803,3932.9,3932.8,0.77355813]
[1761335370269,0.20964803,3932.9,3932.8,0.77355813]
[1761335370570,9.76644803,3932.9,3932.8,0.77355813]
[1761335370865,9.99934803,3932.9,3932.8,0.77355813]
[1761335372280,9.22764803,3932.9,3932.8,1.23119813]
[1761335372775,0.20964803,3932.9,3932.8,1.23119813]
[1761335372964,3.7466,3933.4,3933.3,0.7707]
[1761335373161,4.5537,3933.4,3933.3,0.7707]
[1761335373365,7.7615,3933.4,3933.3,0.2191]
[1761335374670,7.7615,3933.4,3933.3,0.4377]
[1761335374869,7.7615,3933.4,3933.3,0.7707]
[1761335375964,4.5537,3933.4,3933.3,0.7707]
[1761335376475,4.5537,3933.4,3933.3,0.4377]
[1761335376768,0.3256,3933.0,3932.8,0.22195813]
[1761335376976,0.7717,3932.9,3932.8,0.22195813]
[1761335377661,0.7717,3932.9,3932.8,0.21435813]
[1761335380070,0.7717,3932.9,3932.8,0.00285813]
[1761335385773,9.7827,3932.9,3932.8,0.21435813]
[1761335388475,9.7827,3932.9,3932.8,0.00285813]
[1761335388778,9.7807,3932.9,3932.8,0.00285813]
[1761335390280,9.7807,3932.9,3932.8,0.21435813]
[1761335390883,0.7717,3932.9,3932.8,0.21435813]
[1761335391182,9.7807,3932.9,3932.8,0.21435813]
[1761335391482,9.7787,3932.9,3932.8,0.21435813]
[1761335391880,9.7787,3932.9,3932.8,0.00285813]
[1761335393175,0.3256,3932.9,3932.8,0.77145813]
[1761335393381,3.7842,3933.0,3932.9,0.7686]
[1761335393582,4.0022,3933.0,3932.9,0.7686]
[1761335393884,4.1343,3933.0,3932.9,0.7686]
[1761335394081,4.1343,3933.0,3932.8,0.00285813]
[1761335394287,0.7944,3932.9,3932.8,0.00285813]
[1761335395087,1.70659223,3932.9,3932.8,0.00285813]
[1761335396178,0.4521,3931.1,3931.0,0.67609255]
[1761335396383,0.7944,3931.1,3931.0,0.7686]
[1761335396683,0.7944,3931.1,3931.0,0.4271]
[1761335396878,0.7944,3931.1,3931.0,0.2115]
[1761335397075,0.79666595,3931.1,3931.0,0.77102938]
[1761335397789,0.00226595,3931.1,3931.0,0.77102938]
[1761335398083,0.00226595,3931.1,3931.0,0.90352938]
[1761335400282,0.1358,3930.5,3930.3,1.46733407]
[1761335400584,0.7672,3930.4,3930.3,0.7872]
[1761335400782,3.4278,3930.5,3930.4,0.3442]
[1761335400984,0.00226595,3931.1,3930.8,0.7872]
[1761335400985,3.2078,3930.9,3930.8,0.7872]
[1761335401192,9.1828,3930.9,3930.8,0.7872]
[1761335401390,9.7278,3930.9,3930.8,0.78991742]
[1761335401587,9.95,3930.9,3930.8,0.78991742]
[1761335402199,9.95,3930.9,3930.8,0.44571742]
[1761335402800,9.95,3930.9,3930.8,0.22161742]
[1761335403004,9.95,3930.9,3930.8,0.78991742]
[1761335403401,3.975,3930.9,3930.8,0.78991742]
[1761335403705,0.00226595,3931.1,3931.0,0.9197]
[1761335403903,0.76946595,3931.1,3931.0,0.7872]
[1761335404806,0.76946595,3931.1,3931.0,0.443]
[1761335405106,0.76946595,3931.1,3931.0,0.7872]
[1761335405807,0.76946595,3931.1,3930.8,0.22161742]
[1761335405808,0.7672,3930.9,3930.8,0.22161742]
[1761335406393,0.7672,3930.9,3930.8,0.78991742]
[1761335406694,0.7672,3930.9,3930.8,0.44571742]
[1761335406899,0.7672,3930.9,3930.8,0.00271742]
[1761335407301,3.975,3930.9,3930.8,0.00271742]
[1761335412507,3.975,3930.9,3930.8,0.22901742]
[1761335413005,0.7672,3930.9,3930.8,0.76951742]
[1761335413203,0.545,3930.9,3930.8,0.76951742]
[1761335414106,0.7662,3930.9,3930.8,0.76951742]
[1761335414307,0.7662,3930.9,3930.8,0.44361742]
[1761335414510,0.7662,3930.9,3930.8,0.22901742]
[1761335414706,0.7662,3930.9,3930.8,0.44361742]
[1761335414903,0.7662,3930.9,3930.8,0.76951742]
[1761335415303,0.545,3930.9,3930.8,0.76951742]
[1761335417510,4.12115817,3931.9,3930.8,0.76951742]
[1761335417511,0.2316,3932.2,3931.9,0.3259]
[1761335417717,0.7757,3932.1,3932.0,0.7668]
[1761335418112,0.5545,3932.1,3932.0,0.7668]
[1761335418416,0.55646245,3932.1,3932.0,0.7668]
[1761335418803,0.23356245,3932.1,3932.0,0.8998]
[1761335419007,0.00196245,3932.1,3932.0,0.8998]
[1761335419310,0.7757,3931.7,3931.6,0.2263]
[1761335419515,0.1274,3931.5,3931.4,0.2263]
[1761335419716,0.5802,3931.5,3931.4,0.2263]
[1761335420315,0.9031,3931.5,3931.4,0.2263]
[1761335422412,0.9031,3931.5,3930.8,0.67863164]
[1761335422413,0.4528,3930.9,3930.8,0.67863164]
[1761335422615,0.4528,3930.9,3929.5,2.28636719]
[1761335422616,0.5545,3929.3,3929.2,2.28636719]
[1761335422812,0.5545,3928.7,3928.6,0.4409]
[1761335423013,3.7623,3928.9,3928.6,0.4409]
[1761335423217,2.78845894,3928.9,3928.6,0.4409]
[1761335423408,3.2078,3929.8,3929.2,0.4409]
[1761335423616,0.5545,3930.4,3930.1,0.4409]
[1761335423823,4.70523725,3931.0,3929.6,0.45801]
[1761335423824,3.2078,3931.4,3930.0,0.133]
[1761335424123,0.91335817,3931.8,3930.6,0.3259]
[1761335424124,3.2078,3930.8,3930.6,0.3259]
[1761335424507,3.2078,3931.4,3930.7,0.3259]
[1761335424713,3.2078,3931.4,3930.6,0.78379]
[1761335424908,3.2078,3931.4,3930.5,0.133]
[1761335424909,3.21085679,3931.4,3930.7,0.78378]
[1761335425108,3.21085679,3931.4,3930.8,0.3259]
[1761335425918,3.53375679,3931.4,3930.8,0.3259]
[1761335426118,3.53375679,3931.4,3930.9,0.3259]
[1761335426910,3.53375679,3931.4,3931.0,0.3259]
[1761335427519,0.3229,3931.3,3931.0,0.3259]
[1761335427715,3.21085679,3931.4,3931.0,0.7668]
[1761335427716,0.2316,3931.1,3931.0,0.7668]
[1761335428018,0.00305679,3931.4,3931.3,0.7668]
[1761335428210,3.2078,3932.2,3932.0,0.4409]
[1761335428410,3.2078,3932.2,3931.2,0.133]
[1761335428411,3.6606,3932.2,3931.9,0.3259]
[1761335428714,0.2316,3931.7,3931.6,0.2263]
[1761335428921,0.5545,3931.7,3931.6,0.4409]
[1761335429227,3.6606,3932.2,3932.1,0.5522]
[1761335429422,3.66302594,3932.2,3932.1,0.2263]
[1761335429826,3.98592594,3932.2,3932.1,0.2263]
[1761335430025,0.7757,3931.9,3931.8,0.5522]
[1761335430328,3.44182594,3932.2,3932.1,0.2263]
[1761335430522,3.44182594,3932.2,3932.1,0.7668]
[1761335431025,3.76472594,3932.2,3932.1,0.7668]
[1761335431224,3.44182594,3932.2,3932.1,0.7668]
[1761335431416,0.00242594,3932.2,3932.1,0.7668]
[1761335432127,0.00242594,3932.2,3932.1,5.7668]
[1761335433030,0.00242594,3932.2,3932.1,8.9746]
[1761335433228,3.2078,3933.5,3933.2,0.7668]
[1761335433423,3.4394,3933.5,3933.4,0.7668]
[1761335433729,3.7623,3933.5,3933.4,0.7668]
[1761335434224,3.21041832,3933.5,3933.4,0.7668]
[1761335435715,3.44201832,3933.5,3933.4,0.7668]
[1761335436117,3.98611832,3933.5,3933.4,0.7668]
[1761335440618,3.98611832,3933.5,3932.6,4.35197]
[1761335440619,0.4296,3933.2,3933.1,0.7928]
[1761335440921,0.7668,3932.7,3932.6,1.25046]
[1761335441116,0.4296,3932.7,3932.6,1.25046]
[1761335441316,0.2167,3932.7,3932.6,1.25046]
[1761335441728,0.5539,3933.4,3933.3,0.4459]
[1761335441930,0.4296,3933.4,3933.3,0.4459]
[1761335442134,0.7668,3933.4,3933.3,0.7928]
[1761335442732,0.00261832,3933.5,3933.4,1.25037]
[1761335442932,0.21931832,3933.5,3933.4,1.25037]
[1761335443629,0.00261832,3933.5,3933.4,1.25037]
[1761335443924,0.21931832,3933.5,3933.4,1.25037]
[1761335445131,0.43221832,3933.5,3933.4,1.25037]
[1761335445432,0.76941832,3933.5,3933.4,1.25037]
[1761335446634,0.76941832,3933.5,3933.1,1.02831]
[1761335446635,0.7668,3933.2,3933.1,1.02831]
[1761335447135,0.2167,3932.5,3932.4,3.2078]
[1761335447434,0.7668,3932.3,3932.2,0.2238]
[1761335448139,0.4296,3932.3,3932.2,0.7928]
[1761335448331,0.7668,3932.3,3932.2,0.7928]
[1761335448638,0.3372,3932.4,3932.1,0.3469]
[1761335448930,0.2167,3931.9,3931.8,1.25056]
[1761335449132,0.7668,3931.9,3931.8,0.7928]
[1761335449336,3.9746,3931.9,3931.8,0.2238]
[1761335449828,0.4296,3931.7,3931.6,0.00210123]
[1761335450030,0.7668,3931.7,3931.6,0.00210123]
[1761335450744,0.2167,3930.5,3930.4,0.7928]
[1761335451030,0.5539,3930.5,3930.4,0.7928]
[1761335451235,0.7668,3930.5,3930.4,0.7928]
[1761335451536,0.7689315,3930.5,3930.4,0.79490779]
[1761335452128,0.7689315,3930.5,3930.4,0.22590779]
[1761335452634,0.7689315,3930.5,3930.4,0.57280779]
[1761335452833,0.2188315,3930.5,3930.4,0.79490779]
[1761335453334,0.7689315,3930.5,3930.4,0.79490779]
[1761335454343,0.4317315,3930.5,3930.4,0.79490779]
[1761335454845,0.7689315,3930.5,3930.4,0.79490779]
[1761335455138,0.4317315,3930.5,3930.4,0.79490779]
[1761335455534,0.2188315,3930.5,3930.4,0.79490779]
[1761335455730,0.0021315,3930.5,3930.4,0.79490779]
[1761335457436,0.2301315,3930.5,3930.4,0.79490779]
[1761335457637,0.0021315,3930.5,3930.4,0.79490779]
[1761335457939,0.3314,3931.3,3930.4,0.79490779]
[1761335457940,0.7877,3931.3,3931.2,0.571]
[1761335458147,0.7877,3931.3,3931.2,0.2299]
[1761335458641,0.7877,3931.3,3931.2,0.571]
[1761335458941,0.78982693,3931.3,3931.2,0.571]
[1761335459744,0.78982693,3931.3,3931.2,0.2299]
[1761335460137,0.78982693,3931.3,3930.4,0.57310779]
[1761335460138,0.7877,3930.5,3930.4,0.57310779]
[1761335461047,3.2078,3930.9,3930.8,0.785]
[1761335461242,3.4358,3930.9,3930.8,0.785]
[1761335461442,0.4563,3930.6,3930.5,0.571]
[1761335461643,0.7877,3930.6,3930.5,0.571]
[1761335461941,0.7877,3930.6,3930.5,0.785]
[1761335462739,0.4563,3930.6,3930.5,0.9229]
[1761335462943,0.7877,3930.6,3930.5,0.9229]
[1761335463140,0.7877,3930.6,3930.5,0.785]
[1761335463642,0.7877,3930.6,3930.4,0.00210779]
[1761335463643,0.7877,3930.5,3930.4,0.00210779]
[1761335463940,4.1278,3930.5,3930.4,0.00210779]
[1761335464335,4.1278,3930.5,3930.4,0.23200779]
[1761335464532,3.9955,3930.5,3930.4,0.78710779]
[1761335464744,4.1278,3930.5,3930.4,0.00210779]
[1761335466736,4.1278,3930.5,3929.4,3.2078]
[1761335466737,3.7964,3930.5,3929.4,3.2078]
[1761335466936,0.7877,3929.2,3929.1,0.571]
[1761335467140,0.7877,3929.2,3929.1,1.02907]
[1761335467346,0.7877,3929.2,3929.1,0.785]
[1761335467641,0.5729,3929.8,3929.7,0.4551]
[1761335467846,0.7844,3929.8,3929.7,0.78466972]
[1761335468048,0.7844,3929.8,3929.7,0.00326972]
[1761335469348,0.7844,3929.8,3929.7,0.56186972]
[1761335469842,0.7844,3929.8,3929.7,0.23556972]
[1761335470041,0.7844,3929.8,3929.7,0.00326972]
[1761335477352,0.7844,3929.8,3928.7,1.01672]
[1761335477353,0.3464,3929.7,3928.7,1.01672]
[1761335477650,0.7844,3928.8,3928.7,1.01672]
[1761335478055,0.7844,3928.8,3928.7,1.23952]
[1761335478458,0.7844,3928.8,3928.7,1.24237223]
[1761335478862,0.438,3928.8,3928.7,1.24237223]
[1761335479159,3.9922,3929.1,3929.0,1.36908]
[1761335479654,3.9922,3929.1,3929.0,0.3263]
[1761335479958,0.7844,3928.9,3928.8,1.0167]
[1761335480358,0.7844,3928.9,3928.8,0.7814]
[1761335480759,3.4343,3929.1,3929.0,0.58768]
[1761335480951,0.2265,3929.1,3929.0,1.36908]
[1761335481154,0.5729,3929.4,3929.3,0.7814]
[1761335481460,0.7844,3929.4,3929.3,0.7814]
[1761335481658,3.6458,3929.9,3929.8,0.4551]
[1761335481858,0.3464,3929.5,3929.4,0.45804]
[1761335482062,0.9219,3929.5,3929.2,0.78435]
[1761335482263,0.5579,3929.4,3929.3,1.01665]
[1761335482456,0.7844,3929.4,3929.3,1.23945]
[1761335484061,0.438,3929.4,3929.3,1.23945]
[1761335484663,0.7844,3929.4,3929.3,0.7814]
[1761335485163,0.7844,3929.4,3929.3,1.23945]
[1761335485551,0.7844,3929.4,3929.3,0.7814]
[1761335486157,0.2265,3929.4,3929.3,1.23945]
[1761335487058,3.2078,3929.5,3929.4,1.01664]
[1761335487264,0.7844,3929.8,3929.7,1.23939]
[1761335489567,3.2078,3930.0,3929.9,1.23938]
[1761335489959,3.4343,3930.0,3929.9,1.23938]
[1761335490265,3.9922,3930.0,3929.9,1.23938]
[1761335490465,3.6458,3930.0,3929.9,1.23938]
[1761335490666,3.4343,3930.0,3929.9,1.23938]
[1761335491067,3.2078,3930.0,3929.9,1.23938]
[1761335491873,0.91335817,3930.8,3930.4,0.7814]
[1761335491874,0.7844,3930.5,3930.4,0.7814]
[1761335492075,0.7844,3930.5,3930.4,1.23932]
[1761335492370,3.9922,3930.5,3930.4,1.23932]
[1761335492761,3.6458,3930.5,3930.4,1.23932]
[1761335492966,3.9922,3930.5,3930.4,0.7814]
[1761335494668,4.1297,3930.5,3930.4,0.7814]
[1761335494864,4.1297,3930.5,3930.4,0.4551]
[1761335495168,4.1297,3930.5,3930.2,0.45794]
[1761335495169,0.7844,3930.3,3930.2,0.45794]
[1761335495473,0.2265,3929.8,3929.7,0.7814]
[1761335495659,0.7844,3929.8,3929.7,1.2394]
[1761335495968,0.438,3929.6,3929.5,0.69032]
[1761335496172,0.7844,3929.6,3929.5,1.23942]
[1761335496767,0.7844,3929.5,3929.4,0.7814]
[1761335498672,0.7844,3929.5,3929.4,1.23944]
[1761335500674,0.7844,3929.5,3929.4,0.7814]
[1761335500874,0.9131,3929.5,3929.4,0.2323]
[1761335501074,0.7883,3929.3,3929.2,1.23126]
[1761335502073,0.7883,3929.3,3929.2,0.7732]
[1761335502275,0.1287,3929.5,3929.0,0.2321]
[1761335502276,0.3397,3929.2,3929.0,0.2321]
[1761335502479,0.1287,3929.5,3929.0,0.2321]
[1761335502480,0.7883,3929.1,3929.0,0.2321]
[1761335503084,0.7883,3929.1,3929.0,0.5563]
[1761335503676,0.7883,3929.1,3929.0,0.7732]
[1761335504980,0.7883,3929.1,3929.0,0.2321]
[1761335505385,0.7883,3928.8,3928.7,0.77605223]
[1761335505681,3.9961,3928.8,3928.7,0.77605223]
[1761335505982,0.7883,3928.1,3928.0,0.7732]
[1761335506484,0.7883,3928.1,3928.0,1.2314]
[1761335507080,0.79053798,3928.1,3928.0,0.23397249]
[1761335507281,0.79053798,3928.1,3928.0,0.00187249]
[1761335507682,0.79053798,3928.1,3928.0,0.55817249]
[1761335507883,0.79053798,3928.1,3928.0,0.77507249]
[1761335508081,0.79053798,3928.1,3928.0,0.00187249]
[1761335508891,5.79053798,3928.1,3928.0,0.00187249]
[1761335509085,0.7883,3927.0,3926.9,0.7732]
[1761335509280,0.7883,3927.0,3926.5,1.48598926]
[1761335509281,0.7883,3926.6,3926.5,0.5563]
[1761335509487,3.9961,3926.6,3926.5,0.5563]
[1761335509679,0.7883,3926.3,3926.2,0.5563]
[1761335510079,0.7883,3926.3,3926.2,0.55949374]
[1761335511683,0.7883,3926.3,3926.2,0.77639374]
[1761335512193,3.2078,3926.6,3926.5,0.7732]
[1761335512194,3.4395,3926.6,3926.5,0.7732]
[1761335512396,0.5714,3927.3,3927.2,0.90729]
[1761335512589,3.7792,3927.5,3927.4,0.5563]
[1761335512786,3.9961,3927.5,3927.4,0.5563]
[1761335513179,0.7883,3927.2,3927.1,0.5563]
[1761335513385,0.7883,3927.2,3927.1,0.7732]
[1761335514080,0.4486,3927.2,3927.1,0.7732]
[1761335515201,0.7883,3927.2,3927.1,0.7732]
[1761335515692,0.4486,3927.2,3927.1,0.7732]
[1761335516392,0.7883,3927.2,3927.1,0.7732]
[1761335516592,0.4486,3927.2,3927.1,0.7732]
[1761335518088,3.6762,3927.5,3927.2,0.45829]
[1761335518089,3.7614,3927.5,3927.2,0.45829]
[1761335518391,3.9803,3927.5,3927.4,0.7823]
[1761335520886,3.2078,3927.5,3927.4,1.24057]
[1761335521598,3.2078,3927.9,3927.8,1.24052]
[1761335522098,3.2078,3928.3,3928.0,1.3732]
[1761335522685,0.21613798,3928.1,3928.0,1.3732]
[1761335523295,0.00223798,3928.1,3928.0,1.3732]
[1761335524292,3.322,3929.9,3928.0,1.3732]
[1761335524293,3.4217,3929.1,3929.0,1.37307]
[1761335524489,0.5375,3929.4,3929.3,1.24035]
[1761335524890,0.2139,3929.4,3929.3,1.24035]
[1761335525093,0.2139,3929.5,3929.4,0.7823]
[1761335525593,0.21676776,3929.5,3929.4,0.7823]
[1761335526300,0.00286776,3929.5,3929.4,0.7823]
[1761335527099,3.2078,3930.3,3929.8,0.4456]
[1761335527396,3.2078,3930.3,3930.2,1.24024]
[1761335527597,3.439,3930.7,3930.6,0.7793]
[1761335527793,3.9924,3930.7,3930.6,0.7793]
[1761335528191,3.99534421,3930.7,3930.6,0.7793]
[1761335528395,3.99534421,3930.7,3930.3,0.45792]
[1761335528396,0.2312,3930.4,3930.3,0.3271]
[1761335528590,0.5509,3930.4,3930.3,0.5551]
[1761335528791,0.7846,3930.4,3930.3,0.5551]
[1761335529695,0.7846,3930.4,3930.3,0.228]
[1761335530299,0.7846,3930.4,3930.3,0.5551]
[1761335530596,0.7846,3930.4,3930.3,0.228]
[1761335530800,0.7846,3930.2,3930.1,1.01305]
[1761335531203,0.7846,3930.2,3930.1,1.23725]
[1761335531400,0.7846,3929.8,3929.7,0.228]
[1761335531994,0.7846,3929.8,3929.7,0.686]
[1761335532190,0.7846,3929.8,3929.7,1.0131]
[1761335532600,0.7846,3929.8,3929.7,0.5551]
[1761335533003,0.7846,3929.8,3929.7,1.2373]